Cogmind - Beta 13 @@@ ROGUE MODE // 2024.04.01 @ 19:29:28 Player: BrainTooSmol Result: Destroyed by G-34 Mercenary with Small Laser Performance ------------- Evolutions (0) 0 Regions Visited (2) 400 Robots Destroyed (12) 60 Value Destroyed (355) 355 Prototype IDs (2) 40 Alien Tech Used (0) 0 Bonus (0) 0 TOTAL SCORE: 855 Bonus ------- None Cogmind --------- Core Integrity 0/250 Matter 280/300 Energy 98/100 System Corruption 0% Temperature Cool (6) Movement Walking (120) Location -10/Mines Parts ------- > --- POWER (1) -------- (None) > --- PROPULSION (2) --- Aluminum Leg Aluminum Leg > --- UTILITY (2) ------ Small Storage Unit > --- WEAPON (2) ------- Mining Laser Makeshift Hammer > --- INVENTORY (8) ---- Aluminum Leg Large Battery (200) Signal Interpreter Particle Gun Beam Cannon Light Assault Rifle Peak State ------------ > --- POWER ------------ Light Ion Engine > --- PROPULSION ------- Aluminum Leg Aluminum Leg > --- UTILITY ---------- Small Storage Unit Improved Terrain Scanner > --- WEAPON ----------- Small Laser Light Assault Rifle > --- INVENTORY -------- Ion Engine [Rating: 9] Favorites ----------- Power Light Ion Engine Engine Light Ion Engine Propulsion Aluminum Leg Leg Aluminum Leg Utility Small Storage Unit Device Sensor Array Storage Small Storage Unit Weapon Light Assault Rifle Energy Gun Small Laser Energy Cannon Beam Cannon Ballistic Gun Light Assault Rifle Special Weapon Mining Laser Impact Weapon Makeshift Hammer Build | -11 -10 -10 ------- Run | Yrd Mat Min Slots Evolved . | . . . Power . | . . . Propulsion . | . . . Utility . | . . . Weapon . | . . . Parts Attached 20 | 9 5 6 Power 5 | 3 1 1 Engine 5 | 3 1 1 Core . | . . . Reactor . | . . . Propulsion 6 | 2 2 2 Treads . | . . . Leg 6 | 2 2 2 Wheel . | . . . Hover . | . . . Flight . | . . . Utility 3 | 2 1 . Device 2 | 1 1 . Storage 1 | 1 . . Processor . | . . . Hackware . | . . . Protection . | . . . Artifact . | . . . Weapon 6 | 2 1 3 Energy Gun 2 | 1 1 . Energy Cannon 1 | . . 1 Ballistic Gun 1 | 1 . . Ballistic Cannon . | . . . Launcher . | . . . Special Weapon 1 | . . 1 Impact Weapon 1 | . . 1 Slashing Weapon . | . . . Piercing Weapon . | . . . Special Melee Weapon . | . . . Unidentified Prototypes . | . . . Parts Lost 6 | . . 6 Power 2 | . . 2 Propulsion 2 | . . 2 Utility 1 | . . 1 Weapon 1 | . . 1 Highest Loss Streak 5 | . . 5 To Critical Strikes . | . . . Average Slot Usage (%) 85 | . 96 77 Engine 7 | . 13 3 Leg 26 | . 26 27 Device 8 | . 13 3 Storage 14 | . 14 14 Energy Gun 7 | . 13 4 Energy Cannon 5 | . . 9 Ballistic Gun 8 | . 14 5 Special Weapon 5 | . . 8 Naked Turns . | . . . Heaviest Build 13 | 11 11 13 Greatest Support 20 | 20 20 20 Greatest Overweight (x) 2 | 2 . 2 Average Overweight (x) . | . . . Largest Inventory Capacity 8 | 8 8 8 Average Capacity 7 | 7 8 8 Most Carried 8 | 2 7 8 Average Carried 4 | 1 3 5 Final Capacity 8 | 8 8 8 Final Carried 7 | 1 7 6 Class Distribution -------------------- 100% | Mutant Dominant Class ---------------- Mutant | -10/Materials Mutant | -10/Mines Resources | -11 -10 -10 ----------- Run | Yrd Mat Min Matter Collected 401 | 195 155 51 Remotely . | . . . Salvage Created 288 | 23 155 110 Parts 21 | 2 14 5 Haulers Intercepted . | . . . Recyclers Shooed . | . . . Parts Field Recycled . | . . . Retrieved Matter . | . . . Parts Self-Destructed . | . . . Prevented . | . . . Kills | -11 -10 -10 ------- Run | Yrd Mat Min Combat Hostiles Destroyed 10 | . 5 5 Melee 1 | . . 1 Guns 9 | . 5 4 Classes Destroyed 5 | 1 3 1 Tunneler 1 | 1 . . Watcher 1 | . 1 . Swarmer 3 | . 3 . Grunt 5 | . 2 3 Demolisher 2 | . . 2 Best Kill Streak 3 | 1 3 2 Combat Bots Only 3 | . 3 2 Max Kills in Single Turn 1 | 1 1 1 Gunslinging . | . . . Exploded . | . . . Melee 1 | . . 1 Uniques/NPCs Destroyed . | . . . Combat | -11 -10 -10 -------- Run | Yrd Mat Min Hostile Shots Fired 81 | . 36 45 Missed 17 | . 8 9 Damage Taken 1028 | . 235 793 Core 253 | . 50 203 Absorbed by Shields . | . . . Regen/Repaired (Parts) 129 | . 129 . Core Remaining (%) 100 | 100 . . Volleys Fired 56 | 1 14 41 Largest 2 | 2 2 2 Hottest 160 | 60 60 160 Shots Fired 112 | 2 28 82 Gun 59 | 2 28 29 Cannon 28 | . . 28 Launcher . | . . . Special 25 | . . 25 Kinetic 31 | 1 14 16 Thermal 81 | 1 14 66 Explosive . | . . . Electromagnetic . | . . . Robot Hit Streak 7 | 2 7 7 Robot Miss Streak 4 | . 1 4 Penetration Max . | . . . Secondary Targets 3 | . 2 1 Max Gunslinging Chain 1 | . 1 1 Shots Hit Robots 51 | 2 21 28 Core Hits 22 | 1 10 11 Critical Kills . | . . . Critical Parts Destroyed 1 | . . 1 Critical Strikes 1 | . . 1 Smash 1 | . . 1 Melee Attacks 14 | . . 14 Impact 14 | . . 14 Slashing . | . . . Piercing . | . . . Sneak Attacks . | . . . Combat Hostiles . | . . . Follow-up Attacks . | . . . Damage Inflicted 764 | 20 192 552 Guns 376 | 20 192 164 Cannons 34 | . . 34 Explosions . | . . . Melee 354 | . . 354 Ramming . | . . . Kinetic 190 | 8 84 98 Thermal 220 | 12 108 100 Explosive . | . . . Electromagnetic . | . . . Impact 354 | . . 354 Slashing . | . . . Piercing . | . . . Highest Corruption . | . . . Average Corruption . | . . . Corruption Purged . | . . . Corruption Blocked . | . . . Overload Shots . | . . . Overflow Damage 32 | . . 32 Projectiles . | . . . Explosions . | . . . Melee 32 | . . 32 Knockbacks 1 | . . 1 Impact 1 | . . 1 Kinetic . | . . . Secondary . | . . . Self-Inflicted Damage . | . . . Shots . | . . . Rammed . | . . . Targets Rammed . | . . . Kicked . | . . . Crushed . | . . . Highest Temperature 103 | 20 60 103 Average Temperature 28 | 10 28 28 Received Heat Transfer 201 | . 12 189 Siege Activations . | . . . Robots Corrupted . | . . . Combat Hostiles . | . . . Parts Fried . | . . . Impact Corruptions 1 | . . 1 Robots Melted . | . . . Combat Hostiles . | . . . Parts Melted . | . . . Heat Transferred 499 | 25 250 224 Parts Sabotaged . | . . . Parts Stolen . | . . . Parts Stripped . | . . . Power Chain Reactions . | . . . Alert | -11 -10 -10 ------- Run | Yrd Mat Min Peak Influence 110 | 5 110 97 Initial 42 | . 3 42 Average 40 | . 53 34 Maximum Alert Level . | . . . Low Security (%) 100 | 100 100 100 Level 1 . | . . . Level 2 . | . . . Level 3 . | . . . Level 4 . | . . . Level 5 . | . . . High Security . | . . . Max Security . | . . . Squads Dispatched 1 | . 1 . Investigation 1 | . 1 . Extermination . | . . . Reinforcement . | . . . Assault . | . . . Garrison . | . . . Intercept . | . . . Searches Triggered . | . . . Construction Impeded . | . . . Haulers Reinforced . | . . . Active Scanning Responses . | . . . Cargo Convoy Interrupts . | . . . Stealth | -11 -10 -10 --------- Run | Yrd Mat Min Distress Signals . | . . . Communications Jammed . | . . . Distress Signals . | . . . Times Spotted 17 | . 10 7 Peak Tracking Total 4 | . 4 2 Tactical Retreats 2 | . 1 1 Traps | -11 -10 -10 ------- Run | Yrd Mat Min Traps Triggered . | . . . Indirectly . | . . . Trap Hack Attempts . | . . . Triggered . | . . . Disarmed . | . . . Reprogrammed . | . . . Reused . | . . . Traps Extracted . | . . . Installed 3 | . . 3 Triggered . | . . . Machines | -11 -10 -10 ---------- Run | Yrd Mat Min Machines Disabled . | . . . Max in Single Turn . | . . . Machines Repaired . | . . . Machines Dismantled . | . . . Machines Sabotaged . | . . . Overloaded Fab Kills . | . . . Hacking | -11 -10 -10 --------- Run | Yrd Mat Min Machines Accessed 5 | . 5 . Terminals 3 | . 3 . Fabricators . | . . . Repair Stations 1 | . 1 . Recycling Units 1 | . 1 . Scanalyzers . | . . . Garrison Access . | . . . Total Hacks 22 | . 22 . Successful 12 | . 12 . Failed 10 | . 10 . Catastrophic 1 | . 1 . Database Lockouts . | . . . Manual 9 | . 9 . Terminals 11 | . 11 . Fabricators . | . . . Repair Stations 10 | . 10 . Recycling Units 1 | . 1 . Scanalyzers . | . . . Garrison Access . | . . . Terminal Hacks 1 | . 1 . Prototype ID Bank 1 | . 1 . Fabricator Hacks . | . . . Repair Station Hacks 8 | . 8 . Scan Component 4 | . 4 . Repair 4 | . 4 . Recycling Unit Hacks 1 | . 1 . Report Inventory 1 | . 1 . Scanalyzer . | . . . Garrison Access Hacks . | . . . Unauthorized Hacks 2 | . 2 . Terminals 2 | . 2 . Botnet 2 | . 2 . Fabricators . | . . . Repair Stations . | . . . Recycling Units . | . . . Scanalyzers . | . . . Garrison Access . | . . . Data Cores Recovered . | . . . Used . | . . . Hacking Detections 3 | . 3 . Full Trace Events 1 | . 1 . Feedback Events . | . . . Feedback Blocked . | . . . Robot Schematics Acquired . | . . . Robots Built . | . . . Authchips . | . . . Time . | . . . Total Robot Build Rating . | . . . Part Schematics Acquired . | . . . Parts Built . | . . . Authchips . | . . . Time . | . . . Total Part Build Rating . | . . . Parts Repaired 4 | . 4 . Time 104 | . 104 . Parts Recycled . | . . . Recycled Matter . | . . . Retrieved Matter . | . . . Retrieved Components . | . . . Parts Scanalyzed . | . . . Part Schematics Acquired . | . . . Parts Damaged . | . . . Bothacking | -11 -10 -10 ------------ Run | Yrd Mat Min Used RIF Installer . | . . . Robots Hacked . | . . . Non-combat . | . . . Combat . | . . . Robot Hacks Applied . | . . . Relay Couplers Released . | . . . Fabnet Peak Effective % . | . . . Robots Rewired . | . . . Allies Hacked . | . . . Hacks Repelled . | . . . Allies | -11 -10 -10 -------- Run | Yrd Mat Min Total Allies 3 | . . 3 Largest Group 3 | . . 3 Highest-Rated Group 40 | . . 40 Highest-Rated Ally 16 | . . 16 Total Orders . | . . . Ally Attacks 3 | . . 3 Total Damage 43 | . . 43 Kills . | . . . Allies Corrupted . | . . . Allies Melted . | . . . Intel | -11 -10 -10 ------- Run | Yrd Mat Min Robot Analysis Total . | . . . Derelict Logs Recovered 1 | . . 1 Drone Launches . | . . . Drone Recoveries . | . . . Exploration | -11 -10 -10 ------------- Run | Yrd Mat Min Turns Passed 1509 | 67 592 850 Spaces Moved 830 | 44 357 429 Core 19 | 10 . 9 Treads . | . . . Legs 811 | 34 357 420 Wheels . | . . . Hover . | . . . Flight . | . . . Fastest Speed 50 | 50 120 120 Average Speed 119 | 112 120 120 Slowest Speed 150 | 150 120 150 Overloaded Moves . | . . . Propulsion Burnouts . | . . . Robots Hopped . | . . . Cave-ins Triggered . | . . . Exploration Rate (%) 41 | 4 46 73 Regions Visited 2 Branch Regions 1 Pre-discovered Areas 1 | . . 1 Known Exits Taken . | . . . Unknown Exits Taken 2 | 1 1 . Scrap Searched . | . . . Spaces Dug 7 | . . 7 Terrain Destroyed 7 | . . 7 Melee . | . . . Projectile 7 | . . 7 AOE . | . . . Terrain Rammed . | . . . Walls Destroyed . | . . . Machines Disabled . | . . . Actions | -11 -10 -10 --------- Run | Yrd Mat Min Total 1172 | 57 496 619 Wait 228 | . 109 119 Move 828 | 43 356 429 Hop . | . . . Pick Up 20 | 4 11 5 Fast Attach 4 | 4 . . Attach 12 | 3 5 4 Detach . | . . . Swap 4 | 2 . 2 Drop 3 | . 1 2 Fire 56 | 1 14 41 Melee 14 | . . 14 Ram . | . . . Kick . | . . . Crush . | . . . Escape Stasis . | . . . Rewire . | . . . Trap 3 | . . 3 Miscellaneous . | . . . Route ------- -11/Scrapyard -10/Materials (discovered 2 exits: [*Mat] / [*Min]) -10/Mines (discovered 1 exit: [*Mat]) History --------- Turn | Location | Event 12 | -11/Scrapyard | Discovered new exit (range 15) 68 | -11/Scrapyard | Entered Materials 106 | -10/Materials | Discovered new exit (range 16) 233 | -10/Materials | Discovered new exit (range 11) 312 | -10/Materials | Build established: Mutant 385 | -10/Materials | Repaired Lgt. Ion Engine 413 | -10/Materials | Repaired Aluminum Leg 441 | -10/Materials | Repaired Aluminum Leg 469 | -10/Materials | Repaired Sml. Laser 660 | -10/Materials | Entered Mines 661 | -10/Mines | Assembled infested the area 666 | -10/Mines | Assisted by a Guerilla fighting off Assembled 715 | -10/Mines | Found a hidden stash of uninstalled traps 829 | -10/Mines | Discovered new exit (range 6) 855 | -10/Mines | Assisted by bots powering up and referring to "LRC-V3" 918 | -10/Mines | Core integrity fell below 50% 937 | -10/Mines | Lost 3 allies 948 | -10/Mines | Lost 5 parts (1p2n1u1w) 1316 | -10/Mines | Learned location of Storage (-9) 1349 | -10/Mines | Learned Materials stockpile data 1424 | -10/Mines | A weapon hastily lodged in a ceiling crevice suddenly fell to the ground 1495 | -10/Mines | Core integrity fell below 20% 1510 | -10/Mines | Destroyed by G-34 Mercenary with Small Laser Last Messages --------------- that place, they've tightened security following our previous successful raids." World map updated: -9/Storage. 01318_ NI-CK2(g): "We scattered so the Unaware couldn't effectively use their advantage in numbers, and I suggest you do the same." 01318_ NI-CK2(g) slips back into the shadows. 01349_ Acquired derelict log, extracted data. Data stored: Materials stockpile data. 01424_ A Mak. Hammer has been hastily shoved under some rubble with a note attached: "Who needs nails when you have Unaware?" 01426_ Acquired Mak. Hammer. 01500_ G-47 Trooper destroyed. 01504_ G-34 Mercenary suffers critical hit (Smash). 01504_ Destroyed Heat Sink. 01504_ G-34 Mercenary system corrupted by crushing effect. 01504_ G-34 Mercenary knocked back. Map ----- +----------------------------------------------------+ | """ ##??#### ##?????????## ##? | | """ #### #??????????# #? | | """ ## ###???######## #? | | ######## #????## ## #? | | ### ##??????# #???## #? | | ##?# ##???????# #??## #? | | ##??# ########### #### #? | | #???# #?# #? | | #???# ### ###### ##? | | #???# ##???####### #### #?? | | ##### #?######### ##??## ##?? | | ##### ### ##????# ##??? | | #### #??# ####### #?????# #???? | | ???# #??# #????## #????## #???? | | ???# #??## ######????# #???## ##??? | | ???# ###?## ##?????????# ##??# #??? | | ???# #??####?????????## ##?# #??? | | ???## #??????????????## #### ##??? | | ????# ###??????####### #?#####???? | | ????# ##?????# #?????????? | | ????# #?????# ##?????????? | | ????## #?????# #### ##??????????? | | ????## #?????# ????## #####???????????? | | ????# #????????????# #???????????????? | | ???## #????????????# ####????????????? | | #?## ##????????????#g@ *#????????????? | | ### ##?????????????####%#????????????? | | #?????????????????#=#????????????? | | ##????????????????# #????????????? | | = #????????????????# #????????????? | | ##???????????????# #????????????? | | ##????????? ##??# #????????????? | | % ###### #??# #????????????? | | =% """????? #????????????? | | ## """?????# #????????????? | | # ##### """?????? ?????????????? | | # # #?????????????? ?????????????? | | # # #?????????????? ?????????????? | | #### ####?????????????? ?????????????? | | #??# ##??????????????? ?????????????? | | ???# #####???????????????? ?????????????? | | ???####???????????????????? ?????????????? | | ?????????????????????????????????????????? | | ?????????????????????????????????????????? | | ?????????????????????????????????????????? | | ?????????????????????????????????????????? | | ?????????????????????????????????????????? | | ?????????????????????????????????????????? | | ?????????????????????????????????????????? | | ?????????????????????????????????????????? | +----------------------------------------------------+ Best States ------------- Heat Dissipation 25 Energy Generation 10 Energy Capacity 250 Matter Stores 300 Matter Capacity 300 Sight Range 16 Robot Scan Range 14 Terrain Scan Range 16 Terrain Scan Density 10 Evasion (%) 55 Item Schematics ----------------- None Robot Schematics ------------------ None Fabricated ------------ Nothing Alien Tech Used ----------------- None Achievements -------------- None Challenges ------------ None Game ------ Seed CoordinationResetTorch Manual? 0 Play Time 00:15:07 Cumulative 7.7 hours Start 2024.04.01 @ 19:13:37 End 2024.04.01 @ 19:29:28 Sessions 1 Manual Loads 0 Difficulty Rogue Special Mode None Game No. 5 Rogue 5 Adventurer 0 Explorer 0 Win Type - Total 1 Types 1/0/0/0/0/0/0/0/0 Lore% 3 Gallery% 13 Achievement% 16 Wizard Run 0 Options --------- Layout 1 ASCII 0 Keyboard 0 Movement Mouse Keybinds 0 Fullscreen 1 Font 24/Smallcaps Map View 50x35 Zoom Use 0% Tactical HUD 1 Map Filters NONE Filters NONE Steam 1 RUN: 8d301c14-f3c3-4df2-8bda-56f59d313080